[Event "Arona Festival 2024"]
[Site "Arona Tenerife"]
[Date "2024.06.23"]
[Round "2.1"]
[White "Yip, Carissa"]
[Black "Pichot, Alan"]
[Result "1/2-1/2"]
[ECO "C45"]
[WhiteElo "2402"]
[BlackElo "2640"]
[Annotator "RC"]
[PlyCount "125"]
[EventDate "2024.06.20"]
[EventType "swiss"]
[EventCountry "ESP"]
[SourceTitle "playchess.com"]
[Source "ChessBase"]
[SourceQuality "1"]
[TimeControl "5400+30"]

1. e4 {[%emt 0:07:00]} e5 {[%emt 0:00:20]} 2. Nf3 {[%emt 0:00:17]} Nc6 {[%emt 0:00:08]} 3. d4 {[%emt 0:00:04]} exd4 {[%emt 0:00:08]} 4. Nxd4 {[%emt 0:00:03]} Nf6 {[%emt 0:02:11]} 5. Nxc6 bxc6 {[%emt 0:00:08]} 6. Bd3 {[%emt 0:07:25]} d5 {[%emt 0:00:30]} 7. exd5 cxd5 {[%emt 0:00:05]} 8. O-O {[%emt 0:00:08]} Be7 {[%emt 0:00:16]} 9. c4 {[%emt 0:00:09]} d4 {[%emt 0:00:15]} 10. Bg5 {[%emt 0:02:14]} O-O {[%emt 0:00:31]} 11. Nd2 {[%emt 0:00:18]} a5 {[%emt 0:00:27]} 12. Re1 {[%emt 0:10:52]} h6 {[%emt 0:00:26]} 13. Qe2 {[%emt 0:05:36]} Be6 {[%emt 0:08:05]} 14. Bh4 {[%emt 0:01:06]} Re8 {[%emt 0:05:11]} 15. Ne4 {[%emt 0:06:22]} Nd7 {[%emt 0:05:41]} 16. Bxe7 {[%emt 0:05:36]} Qxe7 {[%emt 0:00:32]} 17. Ng3 {[%emt 0:05:08]} Qb4 {[%emt 0:17:26]} 18. Nf5 {[%emt 0:12:59]} Nf6 {[%emt 0:18:12]} 19. a3 {[%emt 0:00:09]} Qc5 {[%emt 0:03:01]} 20. Qf3 {[%emt 0:05:33]} Bxf5 {[%emt 0:02:19]} 21. Qxf5 {[%emt 0:00:04]} Qxf5 {[%emt 0:02:57]} 22. Bxf5 {[%emt 0:00:04]} Reb8 {[%emt 0:02:01]} 23. Rab1 {[%emt 0:03:40]} a4 {[%emt 0:08:23]} 24. Re5 {[%emt 0:00:59]} c6 {[%emt 0:07:02]} 25. h3 {[%emt 0:01:56]} Rb6 {[%emt 0:00:28]} 26. Bc2 {[%emt 0:00:29]} Kf8 {[%emt 0:01:46]} 27. Kf1 {[%emt 0:00:56]} Nd7 {[%emt 0:00:33]} 28. Re4 {[%emt 0:00:04]} d3 {[%emt 0:02:20]} 29. Bxd3 {[%emt 0:03:06]} Nc5 {[%emt 0:00:06]} 30. Re3 {[%emt 0:01:11]} Rab8 {[%emt 0:00:07]} 31. Be4 {[%emt 0:00:38]} Rd8 {[%emt 0:05:49]} 32. Bc2 {[%emt 0:09:01]} Rd4 {[%emt 0:01:29]} 33. Rc3 {[%emt 0:07:06]} h5 {[%emt 0:00:26]} 34. Ke2 {[%emt 0:00:59]} g6 {[%emt 0:03:38]} 35. Ke3 {[%emt 0:00:18]} Rd8 {[%emt 0:00:31]} 36. g3 {[%emt 0:02:13]} Kg7 {[%emt 0:00:18]} 37. f3 {[%emt 0:02:36]} Rb7 {[%emt 0:00:24]} 38. Ke2 {[%emt 0:00:38]} f5 {[%emt 0:01:08]} 39. Re3 {[%emt 0:00:52]} Kf6 {[%emt 0:00:21]} 40. g4 {[%emt 0:00:12]} Rd4 {[%emt 0:01:08]} 41. gxf5 {[%emt 0:01:17]} gxf5 {[%emt 0:00:11]} 42. Rd1 {[%emt 0:00:17]} Rxd1 {[%emt 0:01:46]} 43. Kxd1 {[%emt 0:00:06]} Rxb2 {[%emt 0:00:41]} 44. Re8 {[%emt 0:00:37]} Ra2 {[%emt 0:01:02]} 45. Rc8 {[%emt 0:01:03]} Ke5 {[%emt 0:00:29]} 46. Rxc6 {[%emt 0:00:14]} Kd4 {[%emt 0:00:13]} 47. Rd6+ {[%emt 0:00:28]} Kc3 {[%emt 0:02:12]} 48. Rd5 {[%emt 0:00:51]} Ra1+ {[%emt 0:00:34]} 49. Ke2 {[%emt 0:00:01]} Ne6 {[%emt 0:00:30]} 50. Bxa4 {[%emt 0:00:21]} Nf4+ {[%emt 0:00:27]} 51. Ke3 {[%emt 0:01:27]} Nxd5+ {[%emt 0:00:25]} 52. cxd5 {[%emt 0:00:05]} Rxa3 {[%emt 0:00:37]} 53. Bd7 {[%emt 0:00:43]} Kc4+ {[%emt 0:00:18]} 54. Kf4 {[%emt 0:00:04]} Kxd5 {[%emt 0:00:18]} 55. Bxf5 {[%emt 0:00:04]} Kd6 {[%emt 0:00:47]} 56. h4 {[%emt 0:01:52]} Ke7 {[%emt 0:00:15]} 57. Kg5 {[%emt 0:00:04]} Ra5 {[%emt 0:00:53]} 58. Kg6 {[%emt 0:00:10]} Rb5 {[%emt 0:00:21]} 59. Bd3 {[%emt 0:00:21]} Rc5 {[%emt 0:00:33]} 60. f4 {[%emt 0:00:27]} Rc3 {[%emt 0:00:05]} 61. Be2 {[%emt 0:00:15]} Rg3+ {[%emt 0:00:38]} 62. Kf5 {[%emt 0:00:09]} Rh3 {[%emt 0:00:23]} 63. Ke4 {[%emt 0:03:03]} 1/2-1/2

[Event "Arona Festival 2024"]
[Site "Arona Tenerife"]
[Date "2024.06.23"]
[Round "2.2"]
[White "Gupta, Abhijeet"]
[Black "Barria Santos, Jose Guilherme"]
[Result "1-0"]
[ECO "E90"]
[WhiteElo "2589"]
[BlackElo "2410"]
[Annotator "TA"]
[PlyCount "67"]
[EventDate "2024.06.20"]
[EventType "swiss"]
[EventCountry "ESP"]
[SourceTitle "playchess.com"]
[Source "ChessBase"]
[SourceQuality "1"]
[TimeControl "5400+30"]

{[%evp 13,67,27,37,39,38,16,48,40,43,32,63,52,67,28,51,48,41,48,38,0,8,0,121,0,0,0,97,99,108,131,105,112,197,200,235,301,317,332,258,212,315,382,358,379,327,370,405,387,897,494,549,558,581,562,585,591]} 1. d4 {[%emt 0:00:10]} Nf6 {[%emt 0:09:28]} 2. c4 {[%emt 0:00:08]} g6 {[%emt 0:00:06]} 3. Nc3 {[%emt 0:00:15]} Bg7 {[%emt 0:00:07]} 4. e4 {[%emt 0:00:37]} d6 {[%emt 0:00:12]} 5. Nf3 {[%emt 0:00:35]} O-O {[%emt 0:00:08]} 6. h3 {[%emt 0:00:06]} e5 {[%emt 0:00:51]} 7. d5 {[%emt 0:00:05]} Nh5 {[%emt 0:01:44]} 8. g3 {[%emt 0:00:28]} f5 {[%emt 0:02:22]} 9. a3 {[%emt 0:00:17]} Nf6 {[%emt 0:07:09]} 10. exf5 {[%emt 0:00:48] White is slightly better.} gxf5 {[%emt 0:00:08]} 11. Nh4 {[%emt 0:00:09]} e4 {[%emt 0:04:49]} 12. Bg5 {[%emt 0:04:53]} Nbd7 {[%emt 0:09:51]} 13. Nxf5 {[%emt 0:08:17] White is much more active.} Ne5 {[%emt 0:00:08]} 14. Nh4 {[%emt 0:00:04] Prevents Nf3+. And now Qc2 would win.} Qe8 {[%emt 0:01:30]} 15. Be3 {[%emt 0:03:01]} Nfd7 {[%emt 0:02:26]} 16. Qc2 {[%emt 0:05:11]} (16. Nxe4 Nxc4 17. Qe2 Nxe3 (17... Qxe4 18. Bg2 $14) (17... Bxb2 18. Qxc4 Bxa1 19. Bg2 $11) 18. Qxe3 Nf6 $11 (18... Bxb2 19. Ra2 $15)) 16... Nc5 {[%emt 0:08:12] ...Ned3+ would now be deadly.} 17. O-O-O {[%emt 0:00:58][%cal Oe3c5] Black must now prevent Bxc5!} Ncd3+ {[%emt 0:00:26] [#]} (17... Ned3+ $11 18. Kb1 Rb8) 18. Bxd3 {[%emt 0:00:24]} ({White must play} 18. Kb1 $1 $16) 18... exd3 $11 {[%emt 0:00:06]} 19. Qb3 {[%emt 0:02:37]} Qh5 {[%emt 0:05:36]} (19... b6 $1 $11) 20. f4 $36 {[%emt 0:08:53][%mdl 2048] Black is under strong pressure.} Nf3 {[%emt 0:08:48]} 21. Nxf3 {[%emt 0:00:23]} (21. Rxd3 $6 Nxh4 22. gxh4 Bf5 $11) 21... Qxf3 {[%emt 0:00:08]} 22. Bd2 {[%emt 0:00:05]} Qxg3 {[%emt 0:02:29]} (22... b5 $16) 23. Rhg1 $18 {[%emt 0:04:31]} Qh2 {[%emt 0:01:51]} 24. Nb5 {[%emt 0:01:50][%csl LRc7,LRd3][%cal Bc3b5,Bb5d4,Bd4e6][%mdl 32]} Rf7 {[%emt 0:05:39]} 25. Nd4 {[%emt 0:00:49]} Qxh3 {[%emt 0:03:07]} 26. Rh1 {[%emt 0:01:12]} Qg2 {[%emt 0:00:05] [#]} (26... Qg4 $142 27. Rdg1 (27. Qxd3 Qg6 $16) 27... Bxd4 28. Rxg4+ Bxg4 29. Qxd3 Bf6) 27. Ne6 $1 {[%emt 0:01:24]} ({Weaker is} 27. Qxd3 Qg6 28. Qe3 Bg4 $18) 27... Bxe6 {[%emt 0:02:21]} 28. dxe6 {[%emt 0:00:04]} Rf6 {[%emt 0:02:11]} 29. Rhg1 {[%emt 0:01:53]} ({Don't take} 29. Qxd3 Qg6 30. Bc3 Qxd3 31. Rxd3 Rxe6 $18) 29... Qe4 {[%emt 0:03:08]} 30. Rde1 {[%emt 0:00:42]} Qf3 {[%emt 0:00:04]} (30... Qd4 31. Kb1 (31. Qxb7 Re8 $18) 31... Rg6) 31. Ref1 {[%emt 0:05:42] White is clearly winning.} Qe4 {[%emt 0:00:05] [#]} 32. f5 {[%emt 0:00:40][%mdl 512] Prevents Rg6} Rxf5 {[%emt 0:01:10]} (32... Re8 33. Qc3) 33. Rxf5 Qxf5 {[%emt 0:00:08]} 34. Qc3 {[%emt 0:03:05] Weighted Error Value: White=0.24 (precise) /Black=0.28 (precise) .  Mistake:       	White=1     	Black=5      Inaccurate:     	White=3     	Black=2      OK:         	White=9     	Black=8      Best:        	White=3     	Black=2      Strong:       	White=1     	---} 1-0

[Event "Arona Festival 2024"]
[Site "Arona Tenerife"]
[Date "2024.06.23"]
[Round "2.3"]
[White "Kulon, Klaudia"]
[Black "Gorshtein, Ido"]
[Result "1/2-1/2"]
[ECO "B12"]
[WhiteElo "2380"]
[BlackElo "2563"]
[Annotator "TA"]
[PlyCount "151"]
[EventDate "2024.06.20"]
[EventType "swiss"]
[EventCountry "ESP"]
[SourceTitle "playchess.com"]
[Source "ChessBase"]
[SourceQuality "1"]
[TimeControl "5400+30"]

{[%evp 60,151,-57,-118,-103,-90,-92,-91,-108,-80,-79,-87,-73,-108,-108,-111,-118,-89,-100,-181,-124,-114,-97,-110,-85,-87,-87,-73,-81,-81,-80,-80,-80,-72,-31,-143,-143,-142,-128,-109,-77,-77,-77,-77,-77,-77,-77,-77,-77,-77,-60,-60,-60,-60,-8,-8,-8,-8,-8,-8,-8,-8,-8,-12,-12,-12,-12,-12,-12,-12,-12,-12,-12,-12,-12,-12,-12,-12,-12,-12,-12,-12,-12,-12,0,-12,-12,-12,-12,-12,0,-12,0,-12]} 1. e4 {[%emt 0:00:04]} c6 {[%emt 0:01:27]} 2. d4 {[%emt 0:00:06]} d5 {[%emt 0:00:06]} 3. e5 {[%emt 0:00:08]} Bf5 {[%emt 0:00:06]} 4. h4 {[%emt 0:00:09]} h5 {[%emt 0:00:04]} 5. Bd3 {[%emt 0:00:17]} Bxd3 {[%emt 0:00:23]} 6. Qxd3 {[%emt 0:00:05] B12: Caro-Kann: Advance Variation.} Qa5+ {[%emt 0:00:08]} 7. Nd2 {[%emt 0:00:18]} e6 {[%emt 0:00:08]} 8. Ngf3 {[%emt 0:00:19]} Nh6 {[%emt 0:00:09]} 9. O-O {[%emt 0:00:24]} Nf5 {[%emt 0:00:07]} 10. Nb3 {[%emt 0:00:49]} Qa6 {[%emt 0:00:10]} 11. Qd1 {[%emt 0:00:04]} b6 $1 {[%emt 0:00:08] 11...b6 scores better than 11...Nd7.} 12. Bg5 {[%emt 0:05:41]} c5 {[%emt 0:01:09]} 13. dxc5 Bxc5 {[%emt 0:00:11]} 14. Nxc5 {[%emt 0:13:34]} bxc5 {[%emt 0:00:03]} 15. b3 {[%emt 0:00:56]} Nc6 {[%emt 0:06:02]} 16. c4 $146 {[%emt 0:06:26]} ({Predecessor:} 16. Re1 Rb8 17. c3 Qa5 18. Bd2 Qc7 19. Qe2 a5 20. g3 a4 21. Rab1 axb3 22. axb3 {0-1 Diaz Rosas,J (2367)-Cori,J (2652) Mexican op 66th 2021 (4)}) 16... dxc4 {[%emt 0:02:12]} 17. Qe2 {[%emt 0:02:53]} Ncd4 {[%emt 0:02:43]} 18. Nxd4 {[%emt 0:00:34]} Nxd4 {[%emt 0:02:21]} 19. Qxc4 {[%emt 0:07:20]} Qxc4 {[%emt 0:00:10]} 20. bxc4 {[%emt 0:00:02]} Kd7 {[%emt 0:01:27]} 21. Rfd1 {[%emt 0:03:04]} Kc6 {[%emt 0:02:47]} 22. Rd3 {[%emt 0:00:31]} Rhb8 {[%emt 0:11:32]} 23. Rad1 {[%emt 0:00:34]} Rb7 {[%emt 0:04:09]} 24. f3 {[%emt 0:07:12]} Rab8 {[%emt 0:04:23]} 25. Ra3 {[%emt 0:03:16]} Rd7 {[%emt 0:01:13]} 26. Kf1 {[%emt 0:08:36]} Rb4 {[%emt 0:02:12]} 27. Rc1 {[%emt 0:00:45]} Rb2 {[%emt 0:06:32]} 28. Rd1 {[%emt 0:06:22]} Rc2 {[%emt 0:05:11]} 29. Ra6+ {[%emt 0:00:34]} Kb7 {[%emt 0:00:19]} 30. Ra4 {[%emt 0:00:07]} Kc8 {[%emt 0:04:23]} 31. Rd3 {[%emt 0:05:40]} (31. Rd2 $15) 31... Rb7 {[%emt 0:02:01]} 32. Rd2 {[%emt 0:02:21]} Rxd2 {[%emt 0:05:38]} 33. Bxd2 {[%emt 0:00:02]} Rb1+ {[%emt 0:01:49]} 34. Kf2 {[%emt 0:00:02]} Rb2 {[%emt 0:00:08]} 35. Ke3 {[%emt 0:00:43]} Kb7 {[%emt 0:01:21]} 36. Kd3 {[%emt 0:00:50]} Nc6 {[%emt 0:06:39]} 37. Kc3 {[%emt 0:02:08]} Rb1 {[%emt 0:01:56]} 38. Be3 {[%emt 0:00:18]} Kb6 {[%emt 0:00:54]} 39. f4 {[%emt 0:01:21] [#]} (39. Ra3 $17 {might work better.}) 39... Re1 {[%emt 0:04:24]} (39... Rh1 $1 $19 40. Kd3 Rxh4) 40. Kd3 $17 {[%emt 0:02:07]} a5 {[%emt 0:01:00]} 41. Ra3 {[%emt 0:09:03]} Nb4+ {[%emt 0:00:44]} 42. Kd2 {[%emt 0:00:07]} Ra1 {[%emt 0:00:46]} 43. Kc3 {[%emt 0:00:15]} Rxa2 {[%emt 0:01:57]} 44. Rxa2 {[%emt 0:00:03]} Nxa2+ {[%emt 0:00:07]} 45. Kb3 {[%emt 0:00:02]} Nb4 {[%emt 0:00:05]} 46. Bd2 {[%emt 0:00:16]} Nc6 {[%emt 0:11:23]} 47. Bc3 {[%emt 0:00:26]} (47. Ka4 $15) 47... Nd4+ {[%emt 0:00:34]} 48. Ka4 {[%emt 0:00:08]} Nf5 {[%emt 0:00:54]} 49. Bxa5+ {[%emt 0:03:05]} Kc6 {[%emt 0:00:01]} 50. Be1 {[%emt 0:01:17]} Ne3 {[%emt 0:00:11]} 51. Kb3 {[%emt 0:00:10]} Nxg2 {[%emt 0:00:04]} 52. Bg3 {[%emt 0:00:02]} Ne3 {[%emt 0:01:42]} 53. Kc3 {[%emt 0:00:23]} Nf5 {[%emt 0:02:55]} 54. Bf2 {[%emt 0:00:06]} f6 {[%emt 0:00:15]} 55. Kd3 {[%emt 0:00:57]} Ne7 {[%emt 0:02:28]} 56. Ke4 {[%emt 0:03:02]} Nc8 {[%emt 0:02:47]} ({Better is} 56... Kb6 $15) 57. f5 $11 {[%emt 0:02:59]} exf5+ {[%emt 0:00:15]} 58. Kxf5 {[%emt 0:00:05]} fxe5 {[%emt 0:00:07]} 59. Kxe5 {[%emt 0:00:57]} Nd6 {[%emt 0:00:09]} 60. Ke6 {[%emt 0:01:17]} Nxc4 {[%emt 0:01:19]} 61. Kf7 {[%emt 0:00:30]} Ne5+ {[%emt 0:01:15]} 62. Kxg7 {[%emt 0:00:34]} c4 {[%emt 0:00:03]} 63. Be1 {[%emt 0:02:58]} Nf3 {[%emt 0:01:18]} 64. Bc3 {[%emt 0:00:04]} Nxh4 {[%emt 0:00:05]} 65. Kh6 {[%emt 0:00:02]} Kd5 {[%emt 0:00:26]} 66. Kxh5 {[%emt 0:00:06]} Nf3 {[%emt 0:00:06]} 67. Kg4 {[%emt 0:00:23]} Ke4 {[%emt 0:00:02]} 68. Kg3 {[%emt 0:00:21]} Kd3 {[%emt 0:00:23]} 69. Ba5 {[%emt 0:00:17]} Nd4 {[%emt 0:00:26]} 70. Kf2 {[%emt 0:00:35]} Nc6 {[%emt 0:00:09]} 71. Be1 {[%emt 0:00:05]} Nd4 {[%emt 0:01:12]} 72. Ba5 {[%emt 0:00:06]} Nc2 {[%emt 0:00:03]} 73. Kf1 {[%emt 0:00:27]} Ke3 {[%emt 0:00:14]} 74. Bc3 {[%emt 0:00:17]} Kd3 {[%emt 0:01:10]} 75. Ba5 {[%emt 0:00:04]} Nd4 {[%emt 0:00:04]} 76. Kf2 {[%emt 0:10:19]} 1/2-1/2

[Event "Arona Festival 2024"]
[Site "Arona Tenerife"]
[Date "2024.06.23"]
[Round "2.4"]
[White "Peralta, Fernando"]
[Black "Kochavi, Ori"]
[Result "1-0"]
[ECO "E41"]
[WhiteElo "2562"]
[BlackElo "2394"]
[Annotator "TA"]
[PlyCount "199"]
[EventDate "2024.06.20"]
[EventType "swiss"]
[EventCountry "ESP"]
[SourceTitle "playchess.com"]
[Source "ChessBase"]
[SourceQuality "1"]
[TimeControl "5400+30"]

{[%evp 114,199,187,187,231,231,378,0,231,187,187,187,187,187,187,187,222,222,222,187,187,187,187,187,187,187,187,187,187,173,187,187,187,0,187,187,187,171,186,186,180,0,180,0,180,180,180,180,180,180,201,201,222,248,255,236,310,310,299,299,308,308,498,497,744,725,755,696,761,733,675,0,876,0,858,829,858,779,768,0,694,0,770,691,4133,2692,29977,6083]} 1. d4 {[%emt 0:00:05]} Nf6 {[%emt 0:01:53]} 2. c4 {[%emt 0:00:08]} e6 {[%emt 0:00:03]} 3. Nc3 {[%emt 0:00:08]} Bb4 {[%emt 0:00:05]} 4. e3 {[%emt 0:00:05]} O-O {[%emt 0:00:03]} 5. Bd3 {[%emt 0:02:14]} c5 {[%emt 0:00:23]} 6. Nf3 {[%emt 0:02:04]} Nc6 {[%emt 0:00:06]} 7. O-O {[%emt 0:05:01]} Bxc3 {[%emt 0:00:07]} 8. bxc3 {[%emt 0:00:07]} d6 {[%emt 0:00:02]} 9. e4 {[%emt 0:06:17]} e5 {[%emt 0:00:04]} 10. d5 {[%emt 0:00:09]} Ne7 {[%emt 0:00:04]} 11. Nh4 {[%emt 0:00:08]} Ng6 {[%emt 0:00:04] 11...Ng6 is better than 11...h6.} 12. Nf5 {[%emt 0:00:10]} Nf4 {[%emt 0:01:30] E41: Nimzo-Indian: Rubinstein: 4...c5 5 Bd3, including Hübner Variation.} 13. Bc2 {[%emt 0:00:11]} g6 {[%emt 0:03:25]} 14. Ne3 {[%emt 0:00:39]} N4h5 {[%emt 0:14:41]} 15. Kh1 $146 {[%emt 0:06:18]} ({Predecessor:} 15. f3 Ne8 16. g3 Neg7 17. Rf2 Bh3 18. Rb1 b6 19. Ng2 f5 20. Bh6 Qf6 21. exf5 gxf5 {0-1 L'Ami,E (2627)-Antipov,M (2567) Tata Steel-B 78th 2016 (5)}) 15... Ng7 {[%emt 0:05:33]} 16. g3 {[%emt 0:04:22]} Bh3 {[%emt 0:00:55]} 17. Rg1 {[%emt 0:01:27]} Bd7 {[%emt 0:18:03]} 18. Rb1 {[%emt 0:07:28]} Rb8 {[%emt 0:01:45]} 19. Rb2 {[%emt 0:00:47]} Kh8 {[%emt 0:08:41]} 20. Bb1 {[%emt 0:01:50]} a6 {[%emt 0:04:04]} 21. f3 {[%emt 0:04:18]} Ng8 {[%emt 0:02:05]} 22. f4 {[%emt 0:02:29]} f6 {[%emt 0:04:30]} 23. f5 {[%emt 0:01:55]} b5 {[%emt 0:01:45]} 24. g4 {[%emt 0:02:16]} g5 {[%emt 0:07:45]} 25. Bd3 {[%emt 0:02:45]} Nh6 {[%emt 0:01:05]} 26. Qe2 {[%emt 0:06:15]} Qa5 {[%emt 0:01:45]} 27. Bd2 {[%emt 0:01:36]} Ne8 {[%emt 0:00:36]} 28. Rgb1 {[%emt 0:03:09]} Nc7 {[%emt 0:00:19]} 29. a4 {[%emt 0:09:46]} Qxa4 {[%emt 0:01:30]} 30. Be1 {[%emt 0:02:02]} Qa5 {[%emt 0:01:12]} 31. cxb5 {[%emt 0:29:51]} axb5 {[%emt 0:00:21]} 32. Ra2 {[%emt 0:00:00]} Qb6 {[%emt 0:00:07]} 33. Nc4 {[%emt 0:00:00]} bxc4 {[%emt 0:00:03]} 34. Rxb6 {[%emt 0:00:00]} Rxb6 {[%emt 0:00:08]} 35. Bxc4 {[%emt 0:00:00]} Rfb8 {[%emt 0:01:14]} 36. Ra7 {[%emt 0:00:00]} R6b7 {[%emt 0:00:09]} 37. Rxb7 {[%emt 0:00:00]} Rxb7 {[%emt 0:00:05]} 38. h3 {[%emt 0:00:00]} Nf7 {[%emt 0:00:14]} 39. Qa2 {[%emt 0:00:00]} Kg7 {[%emt 0:00:43]} 40. Kg1 {[%emt 0:00:00]} Kf8 {[%emt 0:00:27]} 41. Kf1 {[%emt 0:00:00]} Ke7 {[%emt 0:00:16]} 42. Qa5 {[%emt 0:00:00]} Nd8 {[%emt 0:02:45]} 43. Bd3 {[%emt 0:00:00]} Nb5 {[%emt 0:00:39]} 44. Qa1 {[%emt 0:00:00]} Ra7 {[%emt 0:01:57]} 45. Qb2 {[%emt 0:00:00]} Rb7 {[%emt 0:00:03]} 46. Qa1 {[%emt 0:00:00]} Ra7 {[%emt 0:00:03]} 47. Qb2 {[%emt 0:00:00]} Rb7 {[%emt 0:00:02]} 48. Qc1 {[%emt 0:00:00]} h6 {[%emt 0:00:24]} 49. Bf2 {[%emt 0:00:00]} Ra7 {[%emt 0:01:14]} 50. Qb2 {[%emt 0:00:00]} Rb7 {[%emt 0:00:11]} 51. Kg2 {[%emt 0:00:00]} Nc7 {[%emt 0:01:22]} 52. Qa1 {[%emt 0:00:00]} Nb5 {[%emt 0:00:04]} 53. h4 {[%emt 0:00:47]} Ra7 {[%emt 0:00:23]} 54. Qb2 {[%emt 0:00:29]} Rb7 {[%emt 0:00:07]} 55. Qa1 {[%emt 0:00:14]} Ra7 {[%emt 0:00:03]} 56. Qb2 {[%emt 0:00:04]} Rb7 {[%emt 0:00:04]} 57. hxg5 hxg5 {[%emt 0:00:04]} 58. Be3 {[%emt 0:00:56]} Nc7 {[%emt 0:01:09]} 59. Qa1 {[%emt 0:02:13]} Nb5 {[%emt 0:01:38]} (59... Bb5 $142) 60. Qb2 {[%emt 0:00:32]} Nc7 $1 {[%emt 0:00:18]} 61. Qc1 {[%emt 0:00:12]} Nf7 {[%emt 0:00:15]} 62. Qa3 {[%emt 0:00:20]} Nb5 {[%emt 0:00:28]} 63. Qb2 {[%emt 0:01:20]} Nd8 {[%emt 0:00:06]} 64. Kg3 {[%emt 0:04:33]} Nc7 {[%emt 0:00:19]} 65. Qc1 {[%emt 0:00:06]} Nf7 {[%emt 0:00:06]} 66. Bc4 {[%emt 0:00:30]} Nb5 {[%emt 0:01:10]} 67. Qa1 {[%emt 0:01:36]} Ra7 {[%emt 0:00:45]} 68. Qb2 {[%emt 0:00:14]} Rb7 {[%emt 0:00:03]} 69. Bd2 {[%emt 0:00:45]} Nd8 {[%emt 0:00:21]} 70. Bd3 {[%emt 0:00:49]} Nc7 {[%emt 0:00:33]} 71. Qa1 {[%emt 0:00:21]} Nb5 {[%emt 0:00:09]} 72. Qh1 {[%emt 0:00:52]} Nf7 {[%emt 0:01:00]} 73. Qa1 {[%emt 0:00:40]} Nd8 $1 {[%emt 0:00:13]} 74. Bc2 {[%emt 0:00:16]} Ra7 {[%emt 0:00:32]} 75. Qb2 {[%emt 0:00:05]} Rb7 {[%emt 0:00:29]} 76. Qc1 {[%emt 0:00:09]} Nf7 {[%emt 0:00:16]} 77. Qb2 {[%emt 0:01:14]} Nd8 $1 {[%emt 0:00:07]} 78. Qc1 {[%emt 0:00:48]} Nf7 {[%emt 0:00:04]} 79. Bd3 {[%emt 0:01:19]} Nc7 {[%emt 0:00:23]} 80. Be3 {[%emt 0:00:17]} Nb5 {[%emt 0:00:14]} 81. Bc4 {[%emt 0:00:42]} Nc7 {[%emt 0:02:08]} 82. Qa3 {[%emt 0:00:10]} Ke8 {[%emt 0:10:08]} 83. Bxc5 {[%emt 0:01:27]} dxc5 {[%emt 0:00:05]} 84. Qxc5 {[%emt 0:00:03]} Nb5 {[%emt 0:01:42]} 85. Bxb5 {[%emt 0:00:49]} Rxb5 {[%emt 0:00:03]} 86. Qa3 {[%emt 0:00:46]} Rb6 {[%emt 0:02:07] [#]} 87. c4 $1 {[%emt 0:01:20]} Nd6 $2 {[%emt 0:00:04]} (87... Rb8 88. c5 Rc8) 88. c5 $18 {[%emt 0:00:20]} Nxe4+ {[%emt 0:00:04]} (88... Rb8 $142 89. cxd6 Kf8) 89. Kg2 $18 {[%emt 0:00:05]} Nxc5 {[%emt 0:04:25]} 90. Qxc5 {[%emt 0:00:06]} Rb2+ {[%emt 0:00:02]} 91. Kf3 {[%emt 0:01:40]} Rb3+ {[%emt 0:00:06]} 92. Kg2 {[%emt 0:00:33]} Rb2+ $1 {[%emt 0:00:04]} 93. Kf3 {[%emt 0:00:33]} Rb3+ $1 {[%emt 0:00:05]} 94. Kf2 {[%emt 0:00:28]} Rb2+ {[%emt 0:02:12]} 95. Ke3 {[%emt 0:00:24]} Rb3+ {[%emt 0:00:05]} 96. Kf2 {[%emt 0:00:06]} Rb2+ $1 {[%emt 0:00:04]} 97. Ke3 {[%emt 0:00:03]} Rb3+ $1 {[%emt 0:00:02]} 98. Kd2 {[%emt 0:00:23]} Rg3 {[%emt 0:00:04]} 99. Qb4 {[%emt 0:01:42]} Kf7 {[%emt 0:00:52]} 100. Qd6 {[%emt 0:00:28]} (100. d6 $142 Rg2+ 101. Ke3 Rg1 102. Qb7 Ke8 103. Qb8+ Kf7 104. Qd8 Ba4 105. Qc7+ Kg8 106. Qb8+ (106. Qc4+ Kf8 107. Qxa4 Rg3+ 108. Kf2 Rd3 109. Qd7 e4 110. Qe7+ Kg8) 106... Kf7 107. Qb7+ (107. Qa7+ Kf8 108. Qa8+ Kf7 109. Qxa4 Rg3+ 110. Kf2 Rh3 111. Qd7+ Kf8 112. Qe7+ Kg8) 107... Kg8 108. Qa8+ Kf7 109. Qxa4) 1-0